bitfinex/quotes_ETHUSD_20230116
["timestamp","ask_amount","ask_price","bid_price","bid_amount"]
[1673892597045,36.5581322,1560.1,1560.0,33.10086015]
[1673892597414,35.87788191,1560.1,1560.0,30.55530782]
[1673892598107,37.39467425,1560.1,1559.9,0.08769776]
[1673892598464,45.64655804,1560.0,1559.9,0.08769776]
[1673892598633,39.19688248,1560.0,1559.9,0.08769776]
[1673892599045,37.76082631,1560.0,1559.9,0.08769776]
[1673892599263,36.86693075,1560.0,1559.9,0.08769776]
[1673892601251,37.68104375,1560.0,1559.9,0.08769776]
[1673892601462,36.86693075,1560.0,1559.9,0.08769776]
[1673892601880,34.86693075,1560.0,1559.9,0.08769776]
[1673892602253,28.68753678,1560.0,1559.9,0.08769776]
[1673892603827,24.45153678,1560.0,1559.9,0.08769776]
[1673892604192,3.75378678,1560.0,1559.9,0.08769776]
[1673892604558,0.481,1560.1,1559.9,0.08769776]
[1673892604780,3.27278678,1560.1,1559.9,0.08769776]
[1673892608326,7.6345,1560.3,1559.9,21.2599669]
[1673892608663,23.99335444,1560.4,1559.9,22.4959669]
[1673892608664,15.3914,1560.4,1559.9,22.4959669]
[1673892608827,3.27278678,1560.4,1559.9,22.4959669]
[1673892609229,9.68207678,1560.3,1559.9,8.4386469]
[1673892609440,16.09136678,1560.3,1559.9,21.0439469]
[1673892612647,9.68207678,1560.3,1559.9,27.4546069]
[1673892613788,12.0277609,1560.3,1559.9,27.4546069]
[1673892614628,12.98508534,1560.3,1559.9,27.4546069]
[1673892615038,12.0277609,1560.3,1559.9,27.4546069]
[1673892615294,12.98508534,1560.3,1559.9,27.4546069]
[1673892615506,12.98508534,1560.3,1559.9,19.10359776]
[1673892615507,3.27278678,1560.2,1559.9,19.10359776]
[1673892615718,10.91762678,1560.1,1559.9,12.69299776]
[1673892615926,3.27278678,1560.0,1559.9,0.08769776]
[1673892616145,5.64651746,1560.0,1559.9,0.08769776]
[1673892616348,7.64484,1560.1,1559.9,0.08769776]
[1673892616561,10.91762678,1560.1,1559.9,0.08769776]
[1673892616909,4.50778678,1560.1,1559.9,0.08769776]
[1673892617310,3.27278678,1560.1,1559.9,0.08769776]
[1673892617494,22.50353678,1560.0,1559.9,0.08769776]
[1673892617712,27.34839046,1560.0,1559.9,0.08769776]
[1673892618565,27.82939046,1560.0,1559.9,0.0856531]
[1673892619377,29.0823759,1560.0,1559.9,0.0856531]
[1673892622573,29.07936011,1560.0,1559.9,0.0856531]
[1673892623546,16.25886011,1560.0,1559.9,0.0856531]
[1673892623760,15.00587467,1560.0,1559.9,0.0856531]
[1673892623973,16.25923188,1560.0,1559.9,0.0856531]
[1673892624435,3.75077099,1560.0,1559.9,0.0856531]
[1673892624645,3.26977099,1560.0,1559.9,0.0856531]
[1673892625284,4.70809543,1560.0,1559.9,0.0856531]
[1673892625490,3.26977099,1560.0,1559.9,0.0856531]
[1673892626362,4.22709543,1560.0,1559.9,0.0856531]
[1673892626853,4.52312787,1560.0,1559.9,0.0856531]
[1673892627584,1.25335688,1560.0,1559.9,0.0856531]
[1673892628808,1.43832444,1560.1,1559.9,0.74363177]
[1673892628966,1.77263866,1560.2,1559.9,21.21156177]
[1673892629177,0.95732444,1560.2,1559.9,21.21156177]
[1673892629535,1.25362026,1560.2,1559.9,21.21156177]
[1673892629686,0.95732444,1560.3,1560.0,2.0]
[1673892630017,1.25357376,1560.3,1560.1,13.01968]
[1673892630232,0.95732444,1560.3,1560.1,13.01968]
[1673892630845,0.95732444,1560.3,1560.1,19.42952]
[1673892631846,2.39338061,1560.4,1560.1,19.42952]
[1673892631999,0.95732444,1560.3,1560.1,19.42952]
[1673892634310,0.95732444,1560.3,1560.1,19.22952]
[1673892635321,1.25346733,1560.3,1560.1,19.22952]
[1673892635532,0.95732444,1560.3,1560.1,19.22952]
[1673892638098,2.39338061,1560.4,1560.1,19.22952]
[1673892638306,1.25345049,1560.3,1560.1,19.22952]
[1673892638522,0.95732444,1560.3,1560.1,19.22952]
[1673892645024,0.95732444,1560.4,1560.3,1.03967123]
[1673892645343,2.25274582,1560.5,1560.3,1.03967123]
[1673892645344,0.95732444,1560.5,1560.4,19.22583]
[1673892646017,0.95732444,1560.6,1560.4,19.22583]
[1673892646337,1.25336393,1560.6,1560.4,19.22583]
[1673892650115,1.25336393,1560.6,1560.4,19.22217589]
[1673892650338,10.04698061,1560.7,1560.4,21.2670606]
[1673892650546,2.39338061,1560.7,1560.4,21.2670606]
[1673892650725,2.68891603,1560.7,1560.4,21.2670606]
[1673892650931,0.95732444,1560.7,1560.4,21.2670606]
[1673892651145,1.25285269,1560.7,1560.4,21.2670606]
[1673892651382,2.68890886,1560.7,1560.4,21.2670606]
[1673892653177,1.25285269,1560.6,1560.4,21.2670606]
[1673892653397,0.95732444,1560.6,1560.4,21.2670606]
[1673892653722,2.39338061,1560.7,1560.4,21.2670606]
[1673892653862,2.68884933,1560.7,1560.4,19.22217589]
[1673892656120,2.32852457,1560.7,1560.4,19.22217589]
[1673892656318,2.62138551,1560.7,1560.4,19.22217589]
[1673892657017,1.25018538,1560.6,1560.4,19.22217589]
[1673892657227,0.95732444,1560.6,1560.4,19.22217589]
[1673892664493,1.25017872,1560.6,1560.4,19.22217589]
[1673892664710,0.95732444,1560.6,1560.4,19.22217589]
[1673892666420,2.39480819,1560.6,1560.4,19.22217589]
[1673892668206,0.95732444,1560.5,1560.4,19.22217589]
[1673892668361,1.67696457,1560.5,1560.2,20.78378]
[1673892668565,1.67696457,1560.5,1560.1,19.05613]
[1673892668566,2.39696589,1560.4,1560.1,19.05613]
[1673892668776,1.25267959,1560.3,1560.1,12.6465]
[1673892669570,1.25267959,1560.3,1560.0,14.56878]
[1673892670107,2.69016334,1560.3,1559.9,32.7003331]
[1673892670256,1.52169592,1560.2,1559.9,32.7003331]
[1673892670468,1.22849847,1560.2,1559.9,32.7003331]
[1673892670734,0.95948214,1560.2,1559.9,32.7003331]
[1673892671731,2.39696589,1560.3,1559.9,32.7003331]
[1673892671985,2.69018408,1560.3,1559.9,32.7003331]
[1673892672723,2.39696589,1560.3,1559.9,32.7003331]
[1673892672943,0.95948214,1560.3,1559.9,28.2895031]
[1673892673098,1.25269034,1560.3,1560.0,2.82895031]
[1673892673305,1.25269034,1560.3,1560.1,6.40984]
[1673892674151,2.69017409,1560.3,1560.1,6.40984]
[1673892674394,2.39696589,1560.3,1560.1,6.40984]
[1673892674624,2.69018881,1560.3,1560.1,6.40984]
[1673892674775,0.95948214,1560.3,1560.1,6.40984]
[1673892675140,2.69017377,1560.3,1560.1,6.40984]
[1673892675619,0.95948214,1560.3,1560.1,6.40984]
[1673892675786,1.25267927,1560.3,1560.1,6.40984]
[1673892676676,1.25267927,1560.3,1560.1,12.81968]
[1673892676888,0.95948214,1560.3,1560.1,14.81968]
[1673892677112,0.95948214,1560.3,1560.1,12.81968]
[1673892677524,1.25282395,1560.3,1560.1,12.81968]
[1673892677734,0.95948214,1560.3,1560.1,12.81968]
[1673892678787,3.21365554,1560.4,1560.1,12.81968]
[1673892678997,9.50226116,1560.4,1560.1,12.81968]
[1673892679257,10.31895081,1560.4,1560.1,12.81968]
[1673892679963,10.31895081,1560.4,1560.1,12.8174531]
[1673892680208,1.2529909,1560.3,1560.1,12.8174531]
[1673892681986,3.21365554,1560.4,1560.1,19.2272931]
[1673892682300,9.20698214,1560.5,1560.1,22.38604341]
[1673892682615,9.20698214,1560.5,1560.2,2.0]
[1673892682845,0.95948214,1560.5,1560.3,19.22706]
[1673892683194,1.25268709,1560.5,1560.3,21.349766]
[1673892683360,0.95948214,1560.5,1560.3,21.349766]
[1673892685093,2.69017261,1560.6,1560.3,21.349766]
[1673892685305,1.25270034,1560.5,1560.3,21.349766]
[1673892685516,0.95948214,1560.5,1560.3,21.349766]
[1673892686199,2.39696589,1560.5,1560.3,21.349766]
[1673892686359,2.39696589,1560.5,1560.3,19.22706]
[1673892687193,0.95948214,1560.5,1560.3,19.22706]
[1673892690598,2.69022239,1560.6,1560.3,19.22706]
[1673892690938,0.95948214,1560.6,1560.3,20.46306]
[1673892691237,10.02506589,1560.7,1560.5,19.2246]
[1673892691475,2.39696589,1560.7,1560.5,19.2246]
[1673892691823,2.69023017,1560.7,1560.5,19.2246]
[1673892692069,1.25274642,1560.6,1560.5,19.2246]
[1673892692283,0.95948214,1560.6,1560.5,19.2246]
[1673892692863,0.95948214,1560.6,1560.5,21.4743906]
[1673892693123,2.39696589,1560.7,1560.5,21.4743906]
[1673892693500,2.69004235,1560.7,1560.5,21.4743906]
[1673892694391,0.95948214,1560.7,1560.5,21.4743906]
[1673892694873,1.25250793,1560.7,1560.5,21.4743906]
[1673892696313,0.95948214,1560.7,1560.5,21.4743906]
[1673892696478,0.95948214,1560.7,1560.6,0.72511458]
[1673892696684,2.51053897,1560.8,1560.6,19.94848458]
[1673892696913,1.07305522,1560.8,1560.6,19.94848458]
[1673892700530,1.07305522,1560.8,1560.6,19.94538727]
[1673892700686,1.07305522,1560.8,1560.7,1.99453873]
[1673892700897,1.07305522,1560.8,1560.7,21.21667873]
[1673892701102,0.11357308,1560.8,1560.7,21.21667873]
[1673892702837,0.11363331,1560.9,1560.8,21.22091]
[1673892703028,0.11363331,1560.9,1560.8,26.68491]
[1673892703218,0.11363331,1560.9,1560.8,30.82087155]
[1673892704542,0.11363331,1560.9,1560.8,30.82785809]
[1673892705365,0.13010533,1561.3,1561.1,6.771]
[1673892705509,0.13010533,1561.3,1561.2,38.67205153]
[1673892706866,0.13010533,1561.3,1561.2,38.90205153]
[1673892707031,0.13010533,1561.3,1561.2,56.13999668]
[1673892707434,0.12216257,1561.4,1561.2,56.13999668]
[1673892707645,0.12216257,1561.4,1561.3,14.51578678]
[1673892707856,0.12216257,1561.4,1561.3,30.55560678]
[1673892709463,0.13524847,1561.5,1561.3,36.96051678]
[1673892709678,8.47e-06,1561.5,1561.4,22.069487]
[1673892709846,0.11618507,1561.6,1561.4,41.282987]
[1673892710219,0.11618507,1561.6,1561.5,31.71605678]
[1673892710395,0.11618507,1561.6,1561.5,34.94605678]
[1673892710801,0.12442037,1561.7,1561.5,36.18105678]
[1673892711012,0.12442037,1561.7,1561.6,18.96832551]
[1673892711267,0.12442037,1561.7,1561.6,50.01426551]
[1673892712055,3.7e-07,1561.7,1561.6,50.01426551]
[1673892712323,3.7e-07,1561.7,1561.6,57.43026551]
[1673892712478,3.7e-07,1561.7,1561.6,57.97163204]
[1673892712693,3.7e-07,1561.7,1561.6,50.57063204]
[1673892713107,3.7e-07,1561.7,1561.6,43.79963204]
[1673892713351,3.7e-07,1561.7,1561.6,41.77226551]
[1673892714755,3.7e-07,1561.7,1561.6,50.00026551]
[1673892716117,3.7e-07,1561.7,1561.6,49.77026551]
[1673892717997,3.7e-07,1561.7,1561.6,34.26747873]
[1673892718217,3.7e-07,1561.7,1561.6,32.27294]
[1673892718587,0.4804,1561.9,1561.7,0.00246252]
[1673892718821,0.4804,1561.9,1561.7,12.80845252]
[1673892719374,0.4804,1561.9,1561.7,19.21172252]
[1673892722689,0.4804,1561.9,1561.7,12.80845252]
[1673892723170,0.4804,1561.9,1561.7,0.00246252]
[1673892723344,8.22579598,1561.9,1561.7,0.00246252]
[1673892723553,1.82329598,1561.9,1561.7,0.00246252]
[1673892724320,1.463,1561.8,1561.7,0.00246252]
[1673892724710,8.34636,1561.8,1561.7,0.00246252]
[1673892727830,1.9435,1561.8,1561.7,0.00246252]
[1673892728103,23.29050638,1561.8,1561.7,0.00246252]
[1673892728253,29.43850638,1561.8,1561.7,0.00246252]
[1673892729721,29.43850638,1561.8,1561.0,45.6521]
[1673892729722,0.002,1561.6,1561.0,42.6521]
[1673892729985,0.002,1561.6,1561.0,49.05814]
[1673892729986,14.27165,1561.5,1561.0,49.05814]
[1673892730142,14.75215,1561.5,1561.0,49.05814]
[1673892730351,17.19523468,1561.5,1561.0,18.92814]
[1673892731265,17.19523468,1561.5,1561.0,25.33428]
[1673892731965,1.473,1561.3,1560.9,6.62489905]
[1673892732183,7.87817,1561.3,1560.9,6.62489905]
[1673892732347,14.76394,1561.3,1560.9,6.62489905]
[1673892732561,17.20807868,1561.3,1560.9,6.62489905]
[1673892734255,17.20807868,1561.3,1560.9,13.03145905]
[1673892737406,10.80290868,1561.3,1560.9,13.03145905]
[1673892737632,8.35877,1561.3,1560.9,19.43801905]
[1673892737848,1.9536,1561.3,1560.9,22.71080583]
[1673892738078,11.539,1561.6,1561.0,10.60515331]
[1673892738250,11.539,1561.6,1561.1,20.68123]
[1673892738251,0.002,1561.6,1561.1,20.68123]
[1673892738601,0.002,1561.6,1561.2,7.34090978]
[1673892738754,0.002,1561.6,1561.3,22.48727678]
[1673892739228,0.002,1561.6,1561.4,2.0]
[1673892739389,0.002,1561.6,1561.5,6.40409]
[1673892739597,1.9004,1561.9,1561.5,6.40409]
[1673892739814,1.9004,1561.9,1561.5,7.884941]
[1673892740032,1.9004,1561.9,1561.4,8.40442]
[1673892740033,2.85988214,1561.9,1561.4,6.40442]
[1673892740237,4.23226892,1561.8,1561.3,14.80403]
[1673892740450,5.70026892,1561.8,1561.3,14.80403]
[1673892740772,7.13775267,1561.8,1561.3,14.80403]
[1673892740985,13.54062267,1561.8,1561.3,14.80403]
[1673892741228,2.43248214,1561.7,1561.2,8.473083]
[1673892741438,2.43248214,1561.7,1561.2,6.40496]
[1673892741439,12.58916892,1561.7,1561.2,6.40496]
[1673892742346,0.95948214,1561.6,1561.2,6.40496]
[1673892743023,7.36319214,1561.6,1561.2,6.40496]
[1673892743408,18.50768892,1561.6,1561.1,31.53991]
[1673892743751,1.459,1561.4,1561.1,6.40541]
[1673892743914,7.86358,1561.4,1561.1,6.40541]
[1673892744456,8.82306214,1561.4,1561.1,6.40541]
[1673892745601,7.86358,1561.4,1561.1,6.40541]
[1673892746126,4.74578678,1561.3,1560.9,6.62490905]
[1673892746385,7.86833,1561.2,1560.9,6.62490905]
[1673892746565,7.86833,1561.2,1560.9,0.21862905]
[1673892746566,3.27278678,1561.1,1560.9,0.21862905]
[1673892746779,4.74578678,1561.1,1560.9,0.21862905]
[1673892747383,3.27278678,1561.1,1560.9,0.21862905]
[1673892748239,9.67852678,1561.1,1560.9,0.21862905]
[1673892748429,12.07374546,1561.1,1560.9,0.21862905]
[1673892748858,18.47948546,1561.1,1560.9,0.21862905]
[1673892749068,18.96018546,1561.1,1560.9,0.21862905]
[1673892749329,25.36592546,1561.1,1560.9,0.21862905]
[1673892752376,24.88522546,1561.1,1560.9,0.21862905]
[1673892752803,2.48852255,1561.0,1560.9,0.06408406]
[1673892753127,8.89466255,1561.0,1560.9,0.06408406]
[1673892757349,9.37536255,1561.0,1560.9,0.06408406]
[1673892757521,2.96922255,1561.0,1560.9,0.06408406]
[1673892760138,2.96922255,1561.0,1560.9,0.06101908]
[1673892762339,0.4807,1561.0,1560.9,0.06101908]
[1673892762560,14.25096214,1561.2,1560.9,0.06101908]
[1673892762780,18.10373952,1561.2,1560.9,0.06101908]
[1673892763341,17.52374892,1561.2,1560.9,0.06101908]
[1673892765232,22.47267849,1561.2,1560.9,0.06101908]
[1673892765441,23.91016224,1561.2,1560.9,0.06101908]
[1673892767808,0.95948214,1561.1,1560.9,0.06101908]
[1673892768809,7.36521214,1561.1,1560.9,0.06101908]
[1673892769115,0.95948214,1561.1,1560.9,0.06101908]
[1673892770438,30.31586224,1561.2,1560.9,0.06101908]
[1673892770651,30.31586224,1561.2,1560.9,6.46756908]
[1673892770652,3.45750319,1561.2,1560.9,6.46756908]
[1673892770903,0.95948214,1561.2,1560.9,19.28068908]
[1673892771094,7.94442944,1561.3,1560.9,19.28068908]
[1673892771340,1.53978506,1561.4,1561.1,12.8113]
[1673892771653,0.95948214,1561.4,1561.1,15.033014]
[1673892771802,0.95948214,1561.4,1561.1,21.438744]
[1673892772953,2.97721099,1561.6,1561.1,22.910744]
[1673892773171,0.95948214,1561.6,1561.2,5.0]
[1673892773378,2.39696589,1561.6,1561.3,13.30966]
[1673892773960,2.39696589,1561.6,1561.3,19.71457]
[1673892773961,0.95948214,1561.6,1561.3,19.71457]
[1673892774993,0.95948214,1561.5,1561.1,20.346364]
[1673892775272,0.95948214,1561.5,1561.1,18.12465]
[1673892775483,0.95948214,1561.5,1561.1,24.53038]
[1673892776767,0.95948214,1561.5,1561.1,30.93611]
[1673892776987,0.95948214,1561.6,1561.1,32.40911]
[1673892777178,0.95948214,1561.6,1561.2,3.240911]
[1673892777381,2.39696589,1561.7,1561.3,12.80966]
[1673892778138,0.95948214,1561.6,1561.3,12.80966]
[1673892778350,2.39696589,1561.7,1561.3,12.80966]
[1673892778555,0.95948214,1561.6,1561.3,12.80966]
[1673892778785,0.95948214,1561.6,1561.4,7.685396]
[1673892780398,0.00282636,1561.4,1561.3,12.80954]
[1673892780555,0.00282636,1561.4,1561.3,6.40471]
[1673892781010,0.00282636,1561.4,1561.2,17.304971]
[1673892781180,0.00282636,1561.4,1561.2,9.645871]
[1673892784358,0.00282636,1561.4,1561.2,16.051191]
[1673892785293,0.00282636,1561.4,1561.2,12.80693297]
[1673892786676,0.00282636,1561.4,1561.2,14.80693297]
[1673892787064,0.00282636,1561.4,1561.2,12.80693297]
[1673892788062,0.00282636,1561.4,1561.2,6.40161297]
[1673892788642,0.00282636,1561.4,1561.1,30.93559]
[1673892789326,0.00282636,1561.4,1561.1,11.7192]
[1673892789327,26.92931013,1561.4,1561.1,11.7192]
[1673892789639,0.95948214,1561.3,1560.9,6.46727908]
[1673892789796,8.80213589,1561.3,1560.9,6.46727908]
[1673892790252,7.36465214,1561.3,1560.9,6.46727908]
[1673892790579,10.25941304,1561.3,1560.9,6.46727908]
[1673892791161,16.66458304,1561.3,1560.9,6.46727908]
[1673892791383,19.93736982,1561.3,1560.9,6.46727908]
[1673892791629,12.81146,1561.1,1560.9,0.06101908]
[1673892791855,1.281146,1561.0,1560.9,0.06101908]
[1673892795389,14.9095308,1561.0,1560.9,0.06101908]
[1673892795754,33.71747356,1561.0,1560.9,0.02610816]
[1673892795923,33.65137948,1561.0,1560.9,0.02610816]
[1673892796563,35.08712135,1561.0,1560.9,0.02610816]
[1673892796771,33.65137948,1561.0,1560.9,0.02610816]
[1673892797034,35.0871219,1561.0,1560.9,0.02610816]
[1673892797761,33.17087161,1561.0,1560.9,0.02610816]
[1673892798071,35.08668146,1561.0,1560.9,0.02610816]
[1673892798447,33.17043117,1561.0,1560.9,0.02610816]
[1673892799627,32.94043117,1561.0,1560.9,0.02610816]
[1673892799820,30.34253559,1561.0,1560.9,0.02610816]
[1673892800370,37.48559049,1561.0,1560.9,0.02610816]
[1673892800863,38.18322431,1561.0,1560.9,0.02610816]
[1673892801077,37.48559049,1561.0,1560.9,0.02610816]
[1673892801536,37.40609836,1561.0,1560.9,0.02610816]
[1673892801705,36.58860318,1561.0,1560.9,0.02610816]
[1673892801919,36.44935278,1561.0,1560.9,0.02610816]
[1673892804019,40.19476996,1561.0,1560.9,0.02610816]
[1673892804233,40.42476996,1561.0,1560.9,0.02610816]
[1673892804473,41.79741777,1561.0,1560.9,0.02610816]
[1673892804696,39.01807283,1561.0,1560.9,0.02610816]
[1673892805020,37.92235278,1561.0,1560.9,0.02610816]
[1673892805404,34.92235278,1561.0,1560.9,0.02610816]
[1673892807908,36.01775386,1561.0,1560.9,0.02610816]
[1673892808225,37.36137241,1561.0,1560.9,0.02610816]
[1673892808468,37.84036576,1561.0,1560.9,0.02610816]
[1673892808681,38.07036576,1561.0,1560.9,0.02610816]
[1673892809691,39.41657305,1561.0,1560.9,0.02610816]
[1673892809906,51.21802591,1561.0,1560.9,0.00717066]
[1673892810381,48.82271305,1561.0,1560.9,0.00717066]
[1673892810551,2.0,1560.9,1560.7,0.06408406]
[1673892810761,2.0,1560.9,1560.7,0.05972549]
[1673892810762,32.04666678,1560.8,1560.7,0.05972549]
[1673892810976,24.16669678,1560.8,1560.7,0.05972549]
[1673892812896,24.16669678,1560.8,1560.7,0.05972549]
[1673892815622,16.28672678,1560.8,1560.7,0.05972549]
[1673892815808,9.67975678,1560.8,1560.7,1.09672549]
[1673892816027,20.53593,1561.0,1560.7,1.09672549]
[1673892816370,17.40232678,1561.0,1560.7,1.09672549]
[1673892816585,17.40232678,1561.0,1560.7,2.48790404]
[1673892816810,9.67902678,1561.0,1560.7,2.48790404]
[1673892817411,16.08541678,1561.0,1560.7,2.48790404]
[1673892818029,16.08541678,1561.0,1560.7,1.45090404]
[1673892818239,16.08541678,1561.0,1560.7,0.05972549]
[1673892821415,24.1683303,1561.0,1560.7,0.05972549]
[1673892821964,3.27278678,1560.9,1560.7,0.05972549]
[1673892822114,12.81394,1560.8,1560.7,0.05972549]
[1673892822813,22.49369678,1560.8,1560.7,0.05972549]
[1673892822988,24.83864943,1560.8,1560.7,0.05972549]
[1673892824249,25.96517711,1560.8,1560.7,0.05972549]
[1673892824865,24.83864943,1560.8,1560.7,0.05972549]
[1673892825712,25.96526006,1560.8,1560.7,0.05972549]
[1673892827868,26.44317492,1560.8,1560.7,0.05972549]
[1673892829265,27.40210981,1560.8,1560.7,0.05972549]
[1673892829717,26.44317492,1560.8,1560.7,0.05972549]
[1673892830106,25.9688171,1560.8,1560.7,0.05972549]
[1673892830305,25.9688171,1560.8,1560.7,1.09672549]
[1673892830306,1.13016767,1560.8,1560.7,1.09672549]
[1673892830835,1.13016767,1560.8,1560.7,0.05972549]
[1673892832739,1.13016767,1560.8,1560.7,1.09672549]
[1673892832957,3.34999487,1560.9,1560.7,20.31886549]
[1673892832958,2.39313134,1560.9,1560.7,20.31886549]
[1673892833189,2.39313134,1560.9,1560.7,22.35075204]
[1673892834778,0.95938676,1560.9,1560.7,22.35075204]
[1673892834935,1.13056922,1560.9,1560.7,23.82375204]
[1673892835140,0.95938676,1560.9,1560.7,23.82375204]
[1673892835351,1.43374458,1561.0,1560.7,23.82375204]
[1673892835352,0.95938676,1561.0,1560.9,1.03970552]
[1673892835616,0.95938676,1561.0,1560.9,20.51065607]
[1673892835772,0.95938676,1561.1,1560.9,20.51065607]
[1673892835981,2.56416292,1561.1,1560.9,20.51065607]
[1673892836193,2.39313134,1561.1,1560.9,20.51065607]
[1673892836400,2.39313134,1561.2,1560.9,21.98365607]
[1673892836662,2.39313134,1561.2,1561.0,15.01064561]
[1673892836663,1.1438123,1561.1,1561.0,15.01064561]
[1673892837096,0.95938676,1561.1,1561.0,15.01064561]
[1673892837679,2.39313134,1561.2,1561.0,15.01064561]
[1673892839072,0.95938676,1561.1,1561.0,15.01064561]
[1673892841457,1.14389122,1561.0,1560.9,0.00270552]
[1673892842657,2.39313134,1561.1,1560.9,20.25672246]
[1673892842970,0.95938676,1561.1,1560.9,23.07036171]
[1673892843563,1.14386245,1561.1,1560.9,23.07036171]
[1673892843799,0.95938676,1561.1,1560.9,23.07036171]
[1673892844628,0.95938676,1561.1,1560.9,22.03331925]
[1673892844977,0.95938676,1561.0,1560.9,6.40656]
[1673892845338,0.95938676,1561.0,1560.8,12.81347]
[1673892845588,15.38986117,1561.0,1560.7,19.72522549]
[1673892845757,1.14383659,1560.9,1560.7,19.72522549]
[1673892845968,7.55046659,1560.9,1560.7,0.05972549]
[1673892846178,7.36601676,1560.9,1560.7,0.05972549]
[1673892846407,9.52722089,1560.9,1560.7,0.05972549]
[1673892846623,19.20663767,1560.9,1560.7,0.05972549]
[1673892846829,20.64038225,1560.9,1560.7,0.05972549]
[1673892847358,0.95938676,1560.8,1560.7,0.05972549]
[1673892847588,6.40697,1560.8,1560.7,0.05972549]
[1673892847812,9.11170522,1560.8,1560.7,0.05972549]
[1673892848337,19.93542449,1560.8,1560.7,0.05972549]
[1673892848553,26.34239449,1560.8,1560.7,0.05972549]
[1673892848740,28.49720002,1560.8,1560.7,0.05972549]
[1673892848950,27.53781326,1560.8,1560.7,0.05972549]
[1673892849651,28.4964255,1560.8,1560.7,0.05972549]
[1673892850229,27.53781326,1560.8,1560.7,0.05972549]
[1673892850596,11.45108648,1560.8,1560.7,0.05972549]
[1673892850808,7.55012465,1560.8,1560.7,0.05972549]
[1673892851059,8.98386923,1560.8,1560.7,0.05972549]
[1673892851281,15.39083923,1560.8,1560.7,0.05972549]
[1673892851489,13.95709465,1560.8,1560.7,0.05972549]
[1673892851703,15.39083923,1560.8,1560.7,0.05972549]
[1673892851861,17.9783316,1560.8,1560.7,0.05972549]
[1673892852312,3.73064702,1560.8,1560.7,0.05972549]
[1673892852524,1.14315465,1560.8,1560.7,0.05972549]
[1673892853116,1.61832031,1560.8,1560.7,0.05972549]
[1673892853336,14.43226031,1560.8,1560.7,0.05972549]
[1673892853748,27.52826738,1560.8,1560.7,0.05972549]
[1673892853958,26.02826738,1560.8,1560.7,0.05972549]
[1673892854166,29.73181077,1560.8,1560.7,0.05972549]
[1673892854379,30.45287287,1560.8,1560.7,0.05972549]
[1673892855007,29.01472519,1560.8,1560.7,0.05972549]
[1673892855441,22.60775519,1560.8,1560.7,0.05972549]
[1673892855652,23.32472727,1560.8,1560.7,0.05972549]
[1673892855904,15.00150698,1560.8,1560.7,0.05972549]
[1673892858427,5.3217502,1560.8,1560.7,0.05972549]
[1673892858636,1.62260876,1560.8,1560.7,0.05972549]
[1673892859424,8.02957876,1560.8,1560.7,0.05972549]
[1673892860230,14.43654876,1560.8,1560.7,0.05972549]
[1673892861643,17.70933554,1560.8,1560.7,0.05972549]
[1673892861849,24.11630554,1560.8,1560.7,0.05972549]
[1673892862064,28.29667582,1560.8,1560.7,0.05972549]
[1673892862315,29.01773677,1560.8,1560.7,0.05972549]
[1673892863220,30.93398706,1560.8,1560.7,0.05972549]
[1673892863874,29.01773677,1560.8,1560.7,0.05972549]
[1673892864100,30.93398706,1560.8,1560.7,0.05972549]
[1673892864314,0.03682073,1560.6,1560.4,30.1940763]
[1673892864519,0.03682073,1560.6,1560.4,0.0640763]
[1673892864520,18.98603703,1560.5,1560.4,0.0640763]
[1673892864735,23.77713535,1560.5,1560.4,0.0640763]
[1673892864886,23.13079617,1560.5,1560.4,0.0640763]
[1673892865682,23.85185712,1560.5,1560.4,0.0640763]
[1673892865982,26.84251569,1560.5,1560.4,0.0640763]
[1673892866584,28.27874068,1560.5,1560.4,0.0640763]
[1673892866795,34.68694068,1560.5,1560.4,0.0640763]
[1673892867831,33.25071569,1560.5,1560.4,0.0640763]
[1673892868060,34.68680538,1560.5,1560.4,0.0640763]
[1673892868703,32.76967172,1560.5,1560.4,0.0640763]
[1673892870790,33.72619544,1560.5,1560.4,0.0640763]
[1673892872607,32.76967172,1560.5,1560.4,0.0640763]
[1673892872816,33.72588156,1560.5,1560.4,0.0640763]
[1673892873328,32.76967172,1560.5,1560.4,0.0640763]
[1673892874069,33.72579731,1560.5,1560.4,0.0640763]
[1673892874285,32.28970762,1560.5,1560.4,0.0640763]
[1673892874476,30.10964667,1560.5,1560.4,0.0640763]
[1673892874686,30.37129063,1560.5,1560.4,0.0640763]
[1673892875166,31.29881421,1560.5,1560.4,0.0640763]
[1673892875542,30.36773662,1560.5,1560.4,0.0640763]
[1673892877662,31.29582401,1560.5,1560.4,0.0640763]
[1673892879271,31.29582401,1560.5,1560.0,1.92559357]
[1673892879272,2.0,1560.4,1560.0,1.92559357]
[1673892879514,9.68185678,1560.3,1560.0,4.69011024]
[1673892880235,9.68185678,1560.3,1560.0,1.92559357]
[1673892880236,16.09092678,1560.3,1560.0,1.92559357]
[1673892880544,16.09092678,1560.3,1559.9,32.1300431]
[1673892885545,9.68185678,1560.3,1559.9,32.1300431]
[1673892888936,8.29446494,1560.4,1559.9,32.1300431]
[1673892889161,3.27278678,1560.4,1559.9,33.6030431]
[1673892889325,3.27278678,1560.4,1560.1,12.81952]
[1673892889869,1.43702559,1560.5,1560.1,20.69736]
[1673892890091,4.22891237,1560.5,1560.1,20.69736]
[1673892890256,3.27278678,1560.5,1560.1,20.69736]
[1673892890582,4.22891237,1560.5,1560.1,20.69736]
[1673892890838,0.95612559,1560.5,1560.3,6.40902]
[1673892891052,1.40341802,1560.5,1560.3,6.40902]
[1673892891484,3.40297958,1560.6,1560.3,6.40902]
[1673892891788,5.74628038,1560.6,1560.3,6.40902]
[1673892892623,6.67576636,1560.6,1560.3,6.40902]
[1673892892777,6.67576636,1560.6,1560.3,9.8239016]
[1673892892981,13.08357636,1560.6,1560.3,9.8239016]
[1673892893197,11.64748667,1560.6,1560.3,9.8239016]
[1673892893660,13.08357636,1560.6,1560.3,9.8239016]
[1673892894141,13.08357636,1560.6,1560.3,6.40902]
[1673892895097,1.4039327,1560.5,1560.3,6.40902]
[1673892896985,1.4039327,1560.5,1560.3,12.81804]
[1673892898459,1.4039327,1560.5,1560.3,6.40902]
[1673892899053,1.4039327,1560.5,1560.2,12.87270871]
[1673892899054,15.65652239,1560.5,1560.2,12.87270871]
[1673892899264,6.24237172,1560.4,1560.2,12.87270871]
[1673892899438,12.20325461,1560.4,1560.2,0.02110871]
[1673892899861,18.61218461,1560.4,1560.2,0.02110871]
[1673892900440,20.0482743,1560.4,1560.0,26.73692]
[1673892901283,6.11327105,1560.3,1560.0,12.4437]
[1673892901439,3.27278678,1560.2,1560.0,12.4437]
[1673892901655,3.27278678,1560.2,1559.9,20.61607956]
[1673892901975,3.27278678,1560.2,1559.9,14.20543956]
[1673892902170,18.15758989,1560.3,1559.9,6.50303956]
[1673892902396,13.58504698,1560.3,1559.9,12.91369956]
[1673892902607,2.39221528,1560.3,1559.9,27.26999263]